bitfinex/quotes_ETHUSD_20250425
["timestamp","ask_amount","ask_price","bid_price","bid_amount"]
[1745543536076,5.59585568,1787.1,1786.5,9.38019882]
[1745543536280,5.59606712,1787.0,1786.5,3.7829]
[1745543536454,5.59606712,1787.0,1786.6,5.59721858]
[1745543536655,5.59606712,1787.0,1786.5,9.38016077]
[1745543536957,5.59567483,1787.1,1786.5,12.2335471]
[1745543537369,5.59567483,1787.1,1786.5,6.63628633]
[1745543537584,5.59549753,1787.2,1786.6,5.59700212]
[1745543537763,5.59587807,1787.1,1786.6,5.59700212]
[1745543538148,5.59587921,1787.1,1786.5,19.7506431]
[1745543538484,0.10326682,1787.4,1787.0,5.5958735]
[1745543538666,5.59452883,1787.5,1787.0,6.41492234]
[1745543539069,5.59452883,1787.5,1787.0,12.0106913]
[1745543539285,5.59409263,1787.6,1787.0,0.8191]
[1745543539484,5.59505461,1787.3,1787.0,0.8191]
[1745543539788,5.59505461,1787.3,1786.8,14.63642168]
[1745543539789,5.59537067,1787.2,1786.8,6.04]
[1745543540379,5.59588999,1787.1,1786.8,6.04]
[1745543540689,5.59599957,1787.0,1786.8,6.04]
[1745543540883,5.59599957,1787.0,1786.7,0.8191]
[1745543541089,5.59639715,1786.9,1786.6,7.27]
[1745543541385,5.59639715,1786.9,1786.5,3.0]
[1745543541709,5.59629359,1786.9,1786.5,8.59743725]
[1745543541992,5.59644124,1786.9,1786.5,3.0]
[1745543542977,11.19300938,1786.9,1786.5,3.0]
[1745543543179,1.11930094,1786.9,1786.1,0.7562]
[1745543543392,5.5957154,1787.1,1786.1,0.7562]
[1745543543686,8.0524,1787.0,1786.1,6.3549723]
[1745543543856,5.59754406,1786.5,1786.1,0.7562]
[1745543544052,5.59724909,1786.6,1786.1,6.35487768]
[1745543544251,5.59754453,1786.5,1786.1,6.35487768]
[1745543544449,5.59724909,1786.6,1786.1,0.7562]
[1745543544660,5.59751298,1786.6,1786.1,6.35484591]
[1745543544886,5.59795663,1786.4,1786.1,0.7562]
[1745543545189,5.59795663,1786.4,1785.9,3.0]
[1745543545190,5.59795663,1786.4,1785.9,5.59918885]
[1745543545495,11.19609051,1786.4,1785.9,5.59918885]
[1745543545790,11.19609051,1786.4,1785.8,8.0776]
[1745543545791,5.59836877,1786.3,1785.8,8.0776]
[1745543546085,5.59849436,1786.2,1785.8,13.6772067]
[1745543546279,5.59849436,1786.2,1785.8,8.0776]
[1745543546475,5.59659726,1786.8,1785.8,8.0776]
[1745543546786,5.59818518,1786.3,1785.9,5.5992966]
[1745543547097,5.59818518,1786.3,1785.8,13.67715837]
[1745543547464,5.59858515,1786.2,1785.8,13.67715837]
[1745543547787,5.59876296,1786.2,1785.6,0.01824671]
[1745543548018,5.59910414,1786.0,1785.6,0.01824671]
[1745543548176,5.59999685,1785.8,1785.7,0.15877889]
[1745543548505,5.6000448,1785.7,1785.6,0.01824671]
[1745543549007,5.70331162,1785.7,1785.6,0.12642565]
[1745543549184,5.70331162,1785.7,1785.6,0.01824671]
[1745543549380,6.83364247,1785.7,1785.6,0.12523345]
[1745543549696,6.83364247,1785.7,1785.6,0.01824671]
[1745543550481,5.70331162,1785.7,1785.6,0.01824671]
[1745543550804,0.10326682,1785.7,1785.6,0.01824671]
[1745543551217,0.10326682,1785.7,1785.6,0.12372606]
[1745543551374,0.10326682,1785.7,1785.6,0.01824671]
[1745543551575,0.10326682,1785.7,1785.6,0.12358581]
[1745543551807,0.10326682,1785.7,1785.6,0.01824671]
[1745543552009,0.10326682,1785.7,1785.6,0.12365594]
[1745543552211,0.10326682,1785.7,1785.6,0.01824671]
[1745543552414,0.10326682,1785.7,1785.6,0.12358581]
[1745543552588,5.70331162,1785.7,1785.6,0.01824671]
[1745543552786,6.83362992,1785.7,1785.6,0.12365594]
[1745543552986,5.70331162,1785.7,1785.6,0.01824671]
[1745543553185,5.70331162,1785.7,1785.6,0.12260414]
[1745543553391,6.52971162,1785.7,1785.6,0.01824671]
[1745543554273,6.52971162,1785.7,1784.8,6.36835201]
[1745543554274,5.60035842,1785.6,1785.5,0.01905241]
[1745543554474,5.70362524,1785.6,1785.5,0.01905241]
[1745543555310,5.70362524,1785.6,1785.5,0.1299428]
[1745543555474,5.70362524,1785.6,1785.5,0.01905241]
[1745543555679,5.70362524,1785.6,1785.5,0.1299428]
[1745543555877,0.10326682,1785.6,1785.5,0.01905241]
[1745543556213,0.10326682,1785.6,1785.5,0.1299428]
[1745543556375,0.10326682,1785.6,1785.5,0.01905241]
[1745543556577,0.10326682,1785.6,1785.5,0.12993678]
[1745543557722,0.10326682,1785.6,1785.5,5.73060886]
[1745543557905,5.59954314,1785.9,1785.5,0.12993678]
[1745543558108,0.7736,1786.1,1785.5,0.12993678]
[1745543558318,5.60011434,1785.7,1785.5,0.12993678]
[1745543558927,11.19993124,1785.8,1785.5,0.12993678]
[1745543559122,5.59960094,1785.9,1785.5,0.12993678]
[1745543559483,5.59996206,1785.8,1785.5,0.12993678]
[1745543559702,11.20000176,1785.8,1785.5,0.12993678]
[1745543559925,5.59996206,1785.8,1785.5,0.12993678]
[1745543560329,5.59955195,1785.9,1785.5,0.12993678]
[1745543560489,5.70241258,1786.0,1785.6,5.60034998]
[1745543561006,5.70253379,1786.0,1785.7,0.11244012]
[1745543561208,5.70252999,1786.0,1785.7,0.11244012]
[1745543561412,0.10326682,1786.0,1785.5,0.59214335]
[1745543561590,5.59973043,1785.9,1785.8,0.11206972]
[1745543561790,5.59993457,1785.8,1785.5,0.01905241]
[1745543561985,5.59957395,1785.9,1785.5,0.01905241]
[1745543562191,5.60003182,1785.8,1785.5,0.01905241]
[1745543562392,5.60035842,1785.6,1785.5,0.01905241]
[1745543562883,6.38955842,1785.6,1785.5,0.01905241]
[1745543563507,6.49282524,1785.6,1785.5,0.01905241]
[1745543564997,6.49282524,1785.6,1784.7,0.7524]
[1745543564998,5.60251553,1785.0,1784.7,0.7524]
[1745543565213,5.60067208,1785.5,1784.7,0.7524]
[1745543565214,5.60286866,1784.8,1784.7,0.7524]
[1745543565522,7.8181,1785.4,1784.4,0.7989]
[1745543565822,5.60279604,1784.9,1784.4,0.7989]
[1745543566021,5.60299875,1784.8,1784.4,0.7989]
[1745543566345,6.26481687,1785.3,1784.4,0.7989]
[1745543566346,5.60192706,1785.1,1784.4,0.7989]
[1745543566541,5.60304105,1784.8,1784.4,0.7989]
[1745543566831,5.6027212,1784.9,1784.4,9.40289855]
[1745543567214,5.60329037,1784.7,1784.4,0.7989]
[1745543567393,5.60203561,1785.1,1784.4,0.7989]
[1745543567594,5.60315276,1784.8,1784.4,0.7989]
[1745543567899,5.60335757,1784.7,1784.4,0.7989]
[1745543568293,0.10326682,1785.0,1784.4,0.7989]
[1745543568632,5.60268288,1784.9,1784.4,6.40291801]
[1745543568999,5.7055165,1785.0,1784.6,5.60326558]
[1745543569203,5.60275132,1784.9,1784.4,6.40291667]
[1745543569413,5.60294849,1784.8,1784.4,0.7989]
[1745543569611,5.60294849,1784.8,1784.4,6.40297884]
[1745543569910,5.60294849,1784.8,1784.4,0.7989]
[1745543570498,5.60355075,1784.6,1784.4,0.7989]
[1745543570800,5.6036008,1784.6,1784.2,0.4093886]
[1745543571005,5.60330959,1784.7,1784.2,6.01410989]
[1745543571418,5.60394504,1784.5,1784.2,0.4093886]
[1745543571711,6.72361446,1784.8,1784.2,6.0139358]
[1745543572020,5.60288067,1784.8,1784.2,6.01397947]
[1745543572221,11.20599553,1784.8,1784.3,5.60432311]
[1745543572529,5.60350118,1784.6,1784.2,6.01403422]
[1745543572822,5.70576242,1785.0,1784.2,3.4093886]
[1745543572823,5.60255476,1784.9,1784.2,3.4093886]
[1745543573023,5.60414219,1784.4,1784.2,0.4093886]
[1745543573225,5.60393035,1784.5,1784.2,0.4093886]
[1745543573440,5.60403271,1784.5,1784.2,0.4093886]
[1745543574025,5.60416564,1784.4,1784.2,0.4093886]
[1745543574343,11.2073916,1784.6,1784.2,0.4093886]
[1745543574645,0.10326682,1784.8,1784.4,3.0]
[1745543574826,5.70614725,1784.8,1784.4,8.60397442]
[1745543575032,0.10326682,1784.8,1784.4,8.60397442]
[1745543575540,0.10326682,1784.8,1784.5,5.60369072]
[1745543575845,0.10326682,1784.8,1784.6,9.41927395]
[1745543576051,0.10326682,1784.8,1784.7,5.6031826]
[1745543576229,5.60178893,1785.2,1784.8,5.60277149]
[1745543576544,5.60116881,1785.4,1784.9,5.60243363]
[1745543576699,5.6008084,1785.5,1785.0,5.6020602]
[1745543577133,0.8188,1786.2,1785.1,3.7501]
[1745543577298,0.92206682,1786.2,1785.5,5.60047256]
[1745543577496,5.59902317,1786.1,1785.6,6.35033114]
[1745543577727,5.59911505,1786.0,1785.6,6.35033114]
[1745543577929,5.59902317,1786.1,1785.6,6.35033114]
[1745543578204,5.59902317,1786.1,1785.7,0.11311007]
[1745543578900,5.59901519,1786.1,1785.7,0.11311007]
[1745543579103,0.10326682,1786.2,1785.8,5.59956065]
[1745543579302,0.10326682,1786.2,1785.8,5.59952364]
[1745543579541,0.10326682,1786.2,1785.9,5.71629165]
[1745543579708,0.10326682,1786.2,1785.9,0.11713777]
[1745543580043,5.59910414,1786.0,1785.9,0.11713777]
[1745543580197,0.10326682,1786.2,1785.9,0.11713777]
[1745543580399,5.59896199,1786.1,1785.6,5.60023923]
[1745543580748,5.70175878,1786.2,1785.7,8.71547219]
[1745543580949,0.10326682,1786.2,1785.7,4.5472357]
[1745543581150,0.10326682,1786.2,1785.7,3.11566946]
[1745543581445,0.10326682,1786.2,1785.9,6.35198354]
[1745543581945,0.10326682,1786.2,1786.0,0.11441822]
[1745543582305,5.70191881,1786.2,1786.0,0.11441822]
[1745543582649,5.59879066,1786.1,1786.0,0.11441822]
[1745543583208,5.59879066,1786.1,1785.7,3.8006]
[1745543583408,5.70185074,1786.2,1786.0,0.10807805]
[1745543583638,5.59879736,1786.1,1785.7,9.40053574]
[1745543583902,5.70185074,1786.2,1785.7,11.01967996]
[1745543584147,5.59889819,1786.1,1785.7,5.41965357]
[1745543584308,5.59889819,1786.1,1785.7,3.8006]
[1745543584815,5.59925423,1786.0,1785.7,3.8006]
[1745543585053,5.59925423,1786.0,1785.2,5.60157848]
[1745543585054,5.59879066,1786.1,1785.1,0.8006]
[1745543585233,5.59879066,1786.1,1785.1,7.5906]
[1745543585234,0.55987907,1786.0,1785.1,7.5906]
[1745543585406,5.60129031,1785.4,1785.1,0.8006]
[1745543585637,5.60161326,1785.2,1785.1,0.8006]
[1745543585841,5.60178196,1785.2,1784.8,0.8006]
[1745543586043,5.60237472,1785.0,1784.8,0.8006]
[1745543586242,5.60237472,1785.0,1784.5,0.7812]
[1745543586243,5.60255476,1784.9,1784.5,0.7812]
[1745543586439,5.60209618,1785.1,1784.6,5.6033265]
[1745543586668,5.60209618,1785.1,1784.6,6.24177915]
[1745543586882,5.60172727,1785.2,1784.8,3.0]
[1745543586883,5.6017816,1785.2,1784.8,3.0]
[1745543587173,5.60145344,1785.3,1784.8,8.60271756]
[1745543587393,5.60161814,1785.2,1784.8,8.60274614]
[1745543587582,5.60145344,1785.3,1784.8,10.02332314]
[1745543587770,5.60164298,1785.2,1784.8,10.02332314]
[1745543588485,5.60104757,1785.4,1785.0,3.0]
[1745543588791,6.79,1785.8,1784.9,3.8074]
[1745543589090,6.27918595,1785.7,1784.9,0.8074]
[1745543589235,11.20372184,1785.2,1784.9,0.8074]
[1745543589433,5.60079318,1785.5,1784.9,0.8074]
[1745543589688,0.10326682,1785.6,1785.0,5.60222273]
[1745543589970,11.30437154,1785.6,1785.0,1.20120351]
[1745543590281,0.10326682,1785.6,1785.2,5.60134977]
[1745543590443,0.795,1785.9,1785.2,5.60154574]
[1745543590640,5.59973121,1785.8,1784.9,3.8074]
[1745543590844,0.10326682,1785.8,1785.2,3.0]
[1745543591089,0.10326682,1785.8,1785.4,5.60088616]
[1745543591298,0.10326682,1785.8,1785.7,3.0]
[1745543591585,5.59884462,1786.1,1785.7,3.0]
[1745543591766,5.5992642,1786.0,1785.5,9.39909935]
[1745543591945,5.5992642,1786.0,1785.7,3.0]
[1745543592296,0.7926,1786.5,1786.1,5.59875203]
[1745543592297,5.59757645,1786.5,1786.1,5.59875203]
[1745543592460,5.59757645,1786.5,1786.1,6.45862723]
[1745543592658,5.59757645,1786.5,1786.1,5.59875203]
[1745543593153,5.59788238,1786.4,1786.0,8.59896697]
[1745543593495,0.7593,1786.8,1786.1,5.59864659]
[1745543593801,5.59831467,1786.3,1785.9,8.59928281]
[1745543594085,5.59802193,1786.4,1786.0,3.0]
[1745543594287,5.59847998,1786.2,1785.8,0.8161]
[1745543594583,5.59787686,1786.4,1785.8,6.41579215]
[1745543594584,5.59835613,1786.3,1785.8,6.41579215]
[1745543594792,5.59863411,1786.2,1785.8,3.8161]
[1745543595376,5.59722377,1786.6,1785.8,3.8161]
[1745543595687,5.59866968,1786.2,1785.8,3.8161]
[1745543596050,5.59853547,1786.2,1785.8,3.8161]
[1745543596246,5.59879253,1786.1,1785.8,3.8161]
[1745543596481,0.10326682,1786.6,1785.8,9.41566095]
[1745543596660,5.59753708,1786.5,1785.8,11.03622704]
[1745543596885,5.59847767,1786.2,1785.8,3.8161]
[1745543597399,5.59927563,1786.0,1785.8,0.8161]
[1745543597562,5.60007837,1785.7,1785.5,0.7906]
[1745543597759,5.60023862,1785.7,1785.5,0.7906]
[1745543598111,5.60035842,1785.6,1785.5,0.7906]
[1745543598268,5.60035842,1785.6,1785.3,3.0]
[1745543598469,5.60024182,1785.7,1785.3,3.0]
[1745543598699,5.59912545,1786.0,1785.2,0.8171]
[1745543598883,5.6004927,1785.6,1785.2,0.8171]
[1745543599212,5.6004927,1785.6,1785.3,3.0]
[1745543599409,0.55991255,1785.9,1785.2,0.8171]
[1745543599572,5.60054868,1785.6,1785.2,0.8171]
[1745543599779,5.60054868,1785.6,1785.2,9.41868115]
[1745543599979,5.60018029,1785.7,1785.3,5.60119284]
[1745543600386,5.60041384,1785.6,1785.2,10.36054926]
[1745543600597,5.59994304,1785.8,1785.3,5.60126287]
[1745543600897,5.6001425,1785.7,1785.3,5.60126287]
[1745543601063,0.10326682,1786.0,1785.3,5.60126287]
[1745543601264,5.59967255,1785.9,1785.4,5.6008739]
[1745543601502,5.5998326,1785.8,1785.4,5.6008739]
[1745543602417,5.6001845,1785.7,1785.4,3.0]
[1745543602585,5.60080367,1785.5,1785.2,3.8171]
[1745543602966,5.6004929,1785.6,1785.2,9.41870853]
[1745543603304,5.60023392,1785.7,1785.2,9.41870853]
[1745543603495,5.59991699,1785.8,1785.2,3.8171]
[1745543603702,5.60021958,1785.7,1785.3,3.0]
[1745543603878,5.60021958,1785.7,1785.3,8.60119094]
[1745543604083,5.59990765,1785.8,1785.4,5.60097301]
[1745543604264,5.59950711,1785.9,1785.3,8.6011134]
[1745543604470,1.35240803,1786.0,1785.5,3.0]
[1745543604471,5.70253094,1786.0,1785.5,3.0]
[1745543604670,5.70253094,1786.0,1785.6,5.60023942]
[1745543604866,5.59941969,1785.9,1785.5,3.0]
[1745543605469,5.59941969,1785.9,1785.5,8.60067006]
[1745543605805,5.6004625,1785.6,1785.2,12.97261223]
[1745543605971,5.5998928,1785.8,1785.3,8.60103808]
[1745543606174,5.5998928,1785.8,1785.4,5.60087398]
[1745543606404,11.3019154,1786.0,1785.5,5.60040901]
[1745543606701,5.59969283,1785.9,1785.5,3.0]
[1745543606901,5.59979622,1785.8,1785.5,3.0]
[1745543607499,5.59969283,1785.9,1785.5,3.0]
[1745543607677,5.59969283,1785.9,1785.5,8.60065182]
[1745543607882,5.70250252,1786.0,1785.6,5.60021341]
[1745543608382,5.59835084,1786.3,1785.7,6.379767]
[1745543608569,7.3829,1786.5,1785.7,6.37982879]
[1745543608570,5.59851171,1786.2,1785.7,6.37982879]
[1745543608775,5.59888056,1786.1,1785.7,7.3339]
[1745543608975,5.59927538,1786.0,1785.7,7.3339]
[1745543609374,5.59888056,1786.1,1785.7,7.3339]
[1745543609700,5.59911679,1786.0,1785.7,7.3339]
[1745543609907,11.19796494,1786.1,1785.7,7.3339]
[1745543610111,5.59914553,1786.0,1785.7,7.3339]
[1745543610472,5.59914553,1786.0,1785.7,0.7799]
[1745543610787,5.59989127,1785.8,1785.5,7.3699]
[1745543611599,1.11981091,1786.0,1785.5,7.3699]
[1745543611854,5.59954129,1785.9,1785.5,12.97055399]
[1745543612378,5.59954129,1785.9,1785.5,7.3699]
[1745543612706,5.60047896,1785.6,1785.2,0.7568]
[1745543613016,5.60014537,1785.7,1785.3,8.60118816]
[1745543613385,5.59946074,1785.9,1785.5,5.60065395]
[1745543613710,5.60006746,1785.7,1785.3,10.09714898]
[1745543613915,5.60006746,1785.7,1785.3,3.0]
[1745543614075,5.60077517,1785.5,1785.3,3.0]
[1745543614274,5.6012995,1785.3,1785.2,0.7568]
[1745543614480,5.6012995,1785.3,1784.9,17.5576]
[1745543614711,5.60176014,1785.2,1784.9,17.5576]
[1745543614894,5.60048609,1785.6,1784.9,0.7566]
[1745543615091,5.60177844,1785.2,1784.9,0.7566]
[1745543615493,5.60199678,1785.1,1784.9,0.7566]
[1745543615713,5.60144704,1785.3,1784.9,0.7566]
[1745543616012,0.74551594,1785.6,1784.9,0.7566]
[1745543616013,5.60101689,1785.4,1785.0,5.60203394]
[1745543616221,5.60124696,1785.4,1784.9,3.7566]
[1745543616413,5.60124696,1785.4,1784.9,10.33582097]
[1745543616624,5.60067208,1785.5,1784.9,4.73347377]
[1745543616787,5.60136484,1785.3,1784.9,3.7566]
[1745543616988,5.60224089,1785.0,1784.9,0.7566]
[1745543617211,5.60224089,1785.0,1784.8,3.0]
[1745543617588,11.20488498,1785.0,1784.7,3.0]
[1745543617816,5.60238108,1785.0,1784.5,12.92707258]
[1745543617995,5.60265308,1784.9,1784.5,14.51991266]
[1745543618207,5.60258907,1784.9,1784.5,14.51985438]
[1745543618395,5.60244818,1785.0,1784.6,3.0]
[1745543618594,5.60266175,1784.9,1784.6,3.0]
[1745543618801,5.60288702,1784.8,1784.6,3.0]
[1745543619000,5.60330995,1784.7,1784.3,12.15943381]
[1745543619186,5.60312039,1784.8,1784.3,17.7636883]
[1745543619520,5.60376872,1784.6,1784.2,17.9764886]
[1745543619882,5.60332758,1784.7,1784.3,5.60423762]
[1745543619883,5.60323612,1784.7,1784.3,5.60423762]
[1745543620281,11.20667251,1784.7,1784.2,9.78398277]
[1745543620488,5.60353518,1784.6,1784.2,6.78398277]
[1745543620693,5.60382773,1784.5,1784.2,1.1794886]
[1745543620995,5.60425372,1784.4,1784.2,1.1794886]
[1745543621214,5.60425372,1784.4,1784.2,0.4093886]
[1745543621839,5.60443871,1784.3,1784.2,0.4093886]
[1745543622528,6.35883871,1784.3,1784.2,0.4093886]
[1745543622698,5.66593288,1784.3,1783.4,0.8169]
[1745543622900,5.60616633,1783.8,1783.4,0.8169]
[1745543623165,5.60588293,1783.9,1783.4,6.42416417]
[1745543623367,5.6060143,1783.8,1783.4,0.8169]
[1745543624175,5.60547991,1784.0,1783.4,6.42404406]
[1745543624332,5.60572746,1783.9,1783.4,7.0664102]
[1745543624540,5.60554122,1784.0,1783.5,5.60676527]
[1745543624740,6.15512471,1784.2,1783.4,1.45930441]
[1745543624955,5.605085,1784.1,1783.7,5.60613653]
[1745543625248,1.17602097,1784.1,1783.7,5.6061533]
[1745543625471,1.17602097,1784.1,1783.6,5.60643424]
[1745543625770,5.60513102,1784.1,1783.7,5.60632089]
[1745543625970,5.60513102,1784.1,1783.6,5.60641674]
[1745543626172,5.60521004,1784.1,1783.6,5.60639018]
[1745543626469,5.60518585,1784.1,1783.6,5.60639018]
[1745543626679,5.60538116,1784.0,1783.5,3.0]
[1745543626913,1.2346029,1784.1,1783.4,6.42399729]
[1745543626914,5.60627033,1783.8,1783.4,0.8169]
[1745543627072,5.60649471,1783.7,1783.4,0.8169]
[1745543627236,5.60633322,1783.7,1783.3,5.60739657]
[1745543627438,5.60618868,1783.8,1783.4,5.60725516]
[1745543627637,5.60586485,1783.9,1783.4,5.60725516]
[1745543627962,5.60602686,1783.8,1783.3,5.60740152]
[1745543628162,5.60602686,1783.8,1783.3,11.21480304]
[1745543628363,6.35519484,1783.9,1783.4,5.60715677]
[1745543629396,5.60602112,1783.8,1783.4,5.60715677]
[1745543629549,5.60602112,1783.8,1783.3,5.60736807]
[1745543629748,5.60634992,1783.7,1783.2,8.60775409]
[1745543629957,5.60602112,1783.8,1783.3,5.60740303]
[1745543630164,5.60637309,1783.7,1783.3,5.60740303]
[1745543630340,5.60637309,1783.7,1783.4,0.10915884]
[1745543630541,5.60602112,1783.8,1783.3,5.60740303]
[1745543630756,5.60632419,1783.7,1783.4,0.1180313]
[1745543630957,5.60665153,1783.6,1783.2,5.60775409]
[1745543631277,5.60665153,1783.6,1783.3,0.11840287]
[1745543631649,5.60665153,1783.6,1783.1,16.16993144]
[1745543631912,5.60695262,1783.5,1783.4,0.11838271]
[1745543632052,11.2150065,1783.4,1782.9,11.93673639]
[1745543632258,5.60763859,1783.3,1782.9,11.93673639]
[1745543632578,6.36532165,1783.5,1782.9,5.60865518]
[1745543632771,6.36532165,1783.5,1782.8,6.41592475]
[1745543632772,6.24397444,1783.4,1782.8,6.41592475]
[1745543632956,6.24392783,1783.4,1782.9,5.60863233]
[1745543633159,0.63653217,1783.4,1783.0,5.60849175]
[1745543633486,6.3651292,1783.5,1783.0,5.6083257]
[1745543633688,5.60648642,1783.7,1783.2,5.60774745]
[1745543633890,6.36411522,1783.8,1783.3,6.41435813]
[1745543634056,0.7581,1783.8,1783.3,6.41435813]
[1745543634257,0.7581,1783.8,1783.4,5.60726658]
[1745543634460,5.6060224,1783.8,1783.4,5.60726658]
[1745543634655,1.13151575,1783.8,1783.1,5.60799277]
[1745543634883,5.60662069,1783.7,1783.2,5.60775859]
[1745543635195,5.60680833,1783.6,1783.2,5.60786782]
[1745543635490,5.60680833,1783.6,1783.1,11.21608121]
[1745543635696,5.60680833,1783.6,1783.0,3.0]
[1745543635697,5.60726877,1783.4,1783.0,5.60833322]
[1745543635906,6.16799565,1783.4,1782.9,11.21732637]
[1745543636207,5.60749081,1783.4,1782.9,5.60865885]
[1745543636387,5.60782739,1783.3,1782.8,12.75345118]
[1745543636590,5.60728506,1783.4,1783.0,5.60837609]
[1745543637367,5.60768397,1783.3,1782.9,5.608639]
[1745543637814,6.81049186,1783.4,1783.0,5.60836083]
[1745543638311,6.81049186,1783.4,1783.1,0.12159223]
[1745543638526,1.2030487,1783.4,1783.1,5.72954109]
[1745543638683,5.6063384,1783.7,1783.3,5.60747001]
[1745543639092,5.6063384,1783.7,1783.4,0.12047711]
[1745543639392,0.10326682,1783.8,1783.4,5.60709411]
[1745543639731,0.10326682,1783.8,1783.5,5.72695543]
[1745543640313,0.10326682,1783.8,1783.6,5.60657214]
[1745543640470,0.10326682,1783.8,1783.5,11.33371531]
[1745543640673,0.10326682,1783.8,1783.7,0.1190223]
[1745543640892,0.10326682,1783.8,1783.6,5.72498767]
[1745543641109,0.10326682,1783.8,1783.7,0.11812978]
[1745543641824,5.60518293,1784.1,1783.7,5.72445371]
[1745543642115,6.16613306,1784.0,1783.7,0.11812978]
[1745543642322,5.60540076,1784.0,1783.7,0.11812978]
[1745543642488,5.70851411,1784.1,1783.6,5.60643653]
[1745543642683,5.70851411,1784.1,1783.8,0.11775828]
[1745543643012,0.10326682,1784.1,1783.8,5.60584966]
[1745543643217,0.10326682,1784.1,1784.0,5.60538116]
[1745543643374,5.60399734,1784.5,1784.0,5.60538116]
[1745543643715,5.60402368,1784.5,1784.0,5.71800333]
[1745543643888,5.60417973,1784.4,1784.0,5.71800333]
[1745543644208,5.60402368,1784.5,1784.0,5.71791984]
[1745543644209,5.60407685,1784.5,1784.0,5.71791984]
[1745543644415,5.60415425,1784.4,1784.0,0.11272092]
[1745543644792,5.60412463,1784.4,1784.0,0.11272092]
[1745543645721,11.20851532,1784.4,1784.0,0.11272092]
[1745543645924,5.60412463,1784.4,1784.0,0.11272092]
[1745543646093,5.60456899,1784.3,1784.0,0.11272092]
[1745543646494,5.60456899,1784.3,1783.9,5.60568991]
[1745543646495,5.60478446,1784.2,1783.8,13.3002865]
[1745543646690,5.60475283,1784.2,1784.1,0.10977357]
[1745543647024,5.60549336,1784.0,1783.6,0.7813]
[1745543647224,5.60678012,1783.6,1783.2,6.38908799]
[1745543647429,0.66379372,1784.0,1783.2,2.0301088]
[1745543647626,5.60597827,1783.9,1783.4,5.6070997]
[1745543647835,5.60661825,1783.7,1783.2,7.63791077]
[1745543648126,0.66379372,1784.0,1783.2,7.63791077]
[1745543648127,5.60664121,1783.6,1783.2,7.63791077]
[1745543648428,5.60652029,1783.7,1783.2,7.63791077]
[1745543648592,5.60673099,1783.6,1783.2,5.0301088]
[1745543648926,5.60745781,1783.4,1783.0,17.6001]
[1745543649223,5.60805525,1783.2,1783.0,0.7831]
[1745543649472,5.60670461,1783.6,1782.8,8.60901381]
[1745543649587,5.60749716,1783.4,1782.8,8.60903994]
[1745543649789,5.60776005,1783.3,1782.8,5.60903994]
[1745543650017,0.10326682,1783.5,1782.7,7.96040332]
[1745543650204,5.60821183,1783.1,1782.8,3.0]
[1745543650814,5.60821183,1783.1,1782.7,0.7831]
[1745543651005,6.39854602,1783.2,1782.7,6.39240536]
[1745543651435,6.3986565,1783.2,1782.7,6.39240536]
[1745543651739,0.7906,1783.2,1782.7,6.39240536]
[1745543651905,5.60821431,1783.1,1782.7,6.39233424]
[1745543652316,1.20067271,1783.1,1782.7,0.7831]
[1745543652516,5.60872631,1783.0,1782.7,0.7831]
[1745543652714,5.60855844,1783.0,1782.7,0.7831]
[1745543653118,5.60855844,1783.0,1782.5,12.92608693]
[1745543653333,5.60886399,1782.9,1782.8,0.11299939]
[1745543653531,11.21939794,1782.7,1782.5,0.4093886]
[1745543653731,5.60978346,1782.6,1782.5,0.4093886]
[1745543654465,5.60927466,1782.8,1782.5,0.4093886]
[1745543654615,11.21926981,1782.7,1782.5,0.4093886]
[1745543654814,5.60978346,1782.6,1782.5,0.4093886]
[1745543655335,5.6094817,1782.7,1782.5,0.4093886]
[1745543655651,5.60859459,1783.0,1782.5,0.4093886]
[1745543655837,5.60959403,1782.7,1782.5,0.4093886]
[1745543656253,5.60978346,1782.6,1782.5,0.4093886]
[1745543657251,6.17064456,1782.7,1782.5,0.4093886]
[1745543657544,5.6095921,1782.7,1782.5,0.4093886]
[1745543657751,12.04472122,1782.8,1782.5,0.4093886]
[1745543657939,0.826,1782.8,1782.5,0.4093886]
[1745543658323,5.60905723,1782.9,1782.5,0.4093886]
[1745543658542,5.60917285,1782.8,1782.5,0.4093886]
[1745543658929,5.60894358,1782.9,1782.5,6.01935005]
[1745543659453,1.13210264,1782.9,1782.5,0.4093886]
[1745543659757,5.71225172,1782.9,1782.5,0.4093886]
[1745543660122,0.10326682,1782.9,1782.5,6.01928618]
[1745543660327,0.10326682,1782.9,1782.7,5.6094684]
[1745543660769,0.10326682,1782.9,1782.5,3.4093886]
[1745543660971,5.71226731,1782.9,1782.5,3.4093886]
[1745543661181,5.71225358,1782.9,1782.5,3.4093886]
[1745543661482,5.71225358,1782.9,1782.5,9.01932969]
[1745543661679,5.60915668,1782.8,1782.5,3.4093886]
[1745543662055,5.71225358,1782.9,1782.5,3.4093886]
[1745543662257,5.60918209,1782.8,1782.5,3.4093886]
[1745543662462,5.60918837,1782.8,1782.5,3.4093886]
[1745543662689,6.84434894,1782.9,1782.5,9.01947044]
[1745543662862,6.84434894,1782.9,1782.5,9.01948335]
[1745543663256,0.10326682,1782.9,1782.5,9.01932639]
[1745543663462,0.10326682,1782.9,1782.5,9.01948385]
[1745543663650,5.71222199,1782.9,1782.5,9.01948385]
[1745543664153,5.60978346,1782.6,1782.5,0.4093886]
[1745543664352,0.56097835,1782.6,1782.5,0.4093886]
[1745543664565,5.60978346,1782.6,1782.5,0.4093886]
[1745543664765,5.60966391,1782.7,1782.5,0.4093886]
[1745543665496,5.60978346,1782.6,1782.5,0.4093886]
[1745543665648,6.42658346,1782.6,1782.5,0.4093886]
[1745543666561,5.60966391,1782.7,1782.5,0.4093886]
[1745543666994,5.60978346,1782.6,1782.5,0.4093886]
[1745543667176,6.7317282,1782.6,1782.5,0.4093886]
[1745543668195,6.7317282,1782.6,1782.5,0.53294995]
[1745543668685,5.60978346,1782.6,1782.5,0.53294995]
[1745543669389,6.41950637,1782.8,1782.5,0.53294995]
[1745543669590,5.60939116,1782.8,1782.5,0.53294995]
[1745543670086,5.60978346,1782.6,1782.5,0.53294995]
[1745543670296,6.73172302,1782.6,1782.5,0.53294995]
[1745543670491,5.60978346,1782.6,1782.5,0.53294995]
[1745543672293,12.63253756,1782.9,1782.5,0.53294995]
[1745543672459,5.60915696,1782.8,1782.5,0.53294995]
[1745543673200,5.60978346,1782.6,1782.5,0.53294995]
[1745543674257,5.71305028,1782.6,1782.5,0.53294995]
[1745543674454,5.71305028,1782.6,1782.5,0.4093886]
[1745543674684,5.71305028,1782.6,1782.5,0.52383687]
[1745543675280,0.10326682,1782.6,1782.5,0.52383687]
[1745543675981,5.71305028,1782.6,1782.5,0.52383687]
[1745543676493,0.10326682,1782.6,1782.5,0.52383687]
[1745543676960,5.71305028,1782.6,1782.5,0.52383687]
[1745543677483,0.10326682,1782.6,1782.5,0.52383687]
[1745543678373,5.71305028,1782.6,1782.5,0.52383687]